bitfinex-derivatives/quotes_ETHF0:USTF0_20251220
["timestamp","ask_amount","ask_price","bid_price","bid_amount"]
[1766208773445,1.75333038,2989.0,2988.1,3.35073359]
[1766208775960,3.35122045,2989.1,2988.1,0.00373359]
[1766208776155,3.35122045,2989.1,2988.2,3.347]
[1766208776353,3.35122045,2989.1,2988.2,5.10033038]
[1766208776553,3.35122045,2989.1,2988.3,1.75333038]
[1766208781158,3.35122045,2989.1,2988.2,3.347]
[1766208781360,3.35122045,2989.1,2988.3,1.75333038]
[1766208783758,0.00422045,2989.1,2988.3,1.75333038]
[1766208783963,3.347,2989.0,2988.3,1.75333038]
[1766208784356,3.347,2989.0,2988.5,1.75333038]
[1766208784662,0.00422045,2989.1,2988.5,5.10033038]
[1766208785452,0.00422045,2989.1,2988.5,3.347]
[1766208786364,0.00422045,2989.1,2988.6,1.75333038]
[1766208786558,2.045e-05,2989.1,2988.8,1.75333038]
[1766208787963,2.045e-05,2989.1,2988.7,1.75153012]
[1766208789363,2.045e-05,2989.1,2988.8,3.347]
[1766208791255,0.85318888,2990.4,2988.9,1.75153012]
[1766208791470,13.75053012,2990.3,2989.4,0.00502125]
[1766208792259,0.85318888,2990.4,2989.4,0.00502125]
[1766208792260,1.75153012,2990.4,2989.4,0.00502125]
[1766208792463,12.81358484,2990.3,2989.4,0.00502125]
[1766208792866,14.56511496,2990.3,2989.4,0.00502125]
[1766208793968,12.81358484,2990.3,2989.4,0.00502125]
[1766208794168,14.56511496,2990.3,2989.4,0.00502125]
[1766208794757,12.81358484,2990.3,2989.4,0.00502125]
[1766208795761,14.56511496,2990.3,2989.4,0.00502125]
[1766208797776,1.75153012,2990.1,2989.4,0.00502125]
[1766208797976,1.75153012,2989.9,2988.7,1.75153012]
[1766208798272,1.75153012,2989.9,2988.8,3.346]
[1766208798473,1.75153012,2989.9,2988.9,1.75153012]
[1766208798976,1.75153012,2989.9,2989.1,0.00502125]
[1766208799174,1.75153012,2989.9,2989.1,3.35102125]
[1766208799368,3.35100001,2990.0,2989.1,3.35102125]
[1766208799569,3.35100001,2990.0,2989.1,0.00502125]
[1766208799769,3.35100001,2990.0,2989.1,3.35102125]
[1766208800265,0.00500001,2990.0,2989.1,3.35102125]
[1766208800464,3.346,2989.9,2989.1,3.35102125]
[1766208800670,1.75153012,2989.7,2989.1,0.00502125]
[1766208800869,3.346,2989.6,2989.1,0.00502125]
[1766208801373,0.00500001,2990.0,2989.3,1.75153012]
[1766208801675,3.346,2989.9,2989.1,3.35102125]
[1766208804972,3.346,2989.9,2989.3,1.75153012]
[1766208805565,0.00500001,2990.0,2989.3,1.75153012]
[1766208805770,3.35100001,2990.0,2989.3,1.75153012]
[1766208806179,0.00500001,2990.0,2989.3,1.75153012]
[1766208806381,3.35100001,2990.0,2989.3,1.75153012]
[1766208808180,3.35100001,2990.0,2989.1,3.35102125]
[1766208808487,3.35100001,2990.0,2989.2,3.346]
[1766208810386,0.00500001,2990.0,2989.2,3.346]
[1766208810681,3.35100001,2990.0,2989.2,3.346]
[1766208810992,3.35100001,2990.0,2989.1,0.00502125]
[1766208811387,3.35100001,2990.0,2989.2,3.346]
[1766208812675,3.35100001,2990.0,2989.3,1.75153012]
[1766208814181,3.35100001,2990.0,2989.2,3.346]
[1766208814376,1.75153012,2989.9,2989.3,3.346]
[1766208814580,1.75153012,2989.9,2989.1,0.00502125]
[1766208814581,1.75153012,2989.6,2989.1,0.00502125]
[1766208814783,1.75153012,2989.4,2988.1,1.75526371]
[1766208814981,1.75153012,2989.4,2988.3,1.75153012]
[1766208815176,1.75153012,2989.4,2988.1,0.00373359]
[1766208815382,1.75153012,2989.2,2988.2,5.09753012]
[1766208815686,1.75153012,2989.2,2988.4,0.00502125]
[1766208815890,5.09753012,2989.4,2988.5,3.346]
[1766208816584,1.75653013,2990.0,2988.8,1.75153012]
[1766208816785,6.475,2989.9,2988.8,5.09753012]
[1766208816982,1.75653013,2990.0,2989.0,1.75153012]
[1766208817185,0.00500001,2990.0,2989.1,3.346]
[1766208817387,3.346,2989.9,2989.1,3.346]
[1766208819894,1.75153012,2989.8,2989.1,3.346]
[1766208821395,3.346,2989.9,2989.1,3.346]
[1766208821793,0.00500001,2990.0,2989.1,3.346]
[1766208821990,0.00500001,2990.0,2988.6,1.75138294]
[1766208821991,3.346,2989.9,2988.6,1.75138294]
[1766208822291,0.00500001,2990.0,2988.9,1.75138294]
[1766208822495,3.346,2989.9,2989.0,3.346]
[1766208822695,0.00500001,2990.0,2989.2,1.75138294]
[1766208822995,0.00500001,2990.0,2989.3,3.346]
[1766208824689,0.00500001,2990.0,2989.4,3.346]
[1766208829997,0.00500001,2990.0,2989.3,3.345]
[1766208831993,0.00500001,2990.0,2988.5,1.75138294]
[1766208832193,1.75138294,2989.6,2988.6,3.345]
[1766208832394,3.345,2989.5,2988.4,0.00502125]
[1766208832698,3.345,2989.4,2988.5,3.345]
[1766208833095,5.09638294,2989.4,2988.4,0.00502125]
[1766208833300,5.09638294,2989.4,2988.5,3.345]
[1766208833489,1.75138294,2989.1,2988.4,0.00502125]
[1766208833802,3.345,2989.0,2988.1,3.34873359]
[1766208834799,3.345,2989.0,2988.3,0.00502125]
[1766208837303,1.75138294,2989.2,2988.3,0.00502125]
[1766208837604,3.346,2989.1,2988.3,0.00502125]
[1766208840605,1.75138294,2989.6,2988.3,0.00502125]
[1766208840806,12.254,2989.5,2988.3,0.00502125]
[1766208844216,12.254,2989.5,2988.4,3.346]
[1766208844422,3.346,2989.5,2988.5,1.75138294]
[1766208844922,3.346,2989.5,2988.4,5.09738294]
[1766208846119,3.346,2989.5,2988.3,0.00502125]
[1766208846421,3.346,2989.5,2988.4,7.052]
[1766208846616,3.346,2989.5,2988.3,0.00502125]
[1766208846814,1.75138294,2989.3,2988.3,0.00502125]
[1766208847116,3.346,2989.2,2988.4,3.346]
[1766208848316,3.346,2989.2,2988.5,3.346]
[1766208850324,0.17232001,2990.0,2988.5,3.346]
[1766208850518,12.255,2989.9,2988.5,3.346]
[1766208850921,1.75138294,2989.8,2988.5,3.346]
[1766208852515,3.346,2989.7,2988.5,3.346]
[1766208854925,3.346,2989.7,2988.3,0.00502125]
[1766208855119,1.75138294,2988.8,2988.3,0.00502125]
[1766208855320,3.346,2988.7,2988.3,0.00502125]
[1766208858329,3.346,2988.7,2988.1,3.359e-05]
[1766208858530,3.346,2988.7,2987.6,3.346]
[1766208858725,3.346,2988.7,2987.5,3.346]
[1766208859030,5.884,2988.6,2987.5,5.09861879]
[1766208859431,0.00502125,2988.3,2987.8,0.00502125]
[1766208859731,3.35102125,2988.3,2987.8,0.00502125]
[1766208863836,0.00502125,2988.3,2987.8,0.00502125]
[1766208864031,3.35102125,2988.3,2987.8,0.00502125]
[1766208866237,0.00502125,2988.3,2987.8,3.35202125]
[1766208870739,0.00502125,2988.3,2987.8,0.00502125]
[1766208875746,3.35202125,2988.3,2987.8,0.00502125]
[1766208881045,0.00502125,2988.3,2987.8,0.00502125]
[1766208881542,3.35202125,2988.3,2987.8,0.00502125]
[1766208882446,3.35202125,2988.3,2987.8,2.125e-05]
[1766208882642,3.35202125,2988.3,2987.5,0.00248145]
[1766208883650,3.35202125,2988.3,2987.6,0.00502125]
[1766208884951,1.75317499,2988.0,2987.4,3.347]
[1766208885152,3.347,2987.9,2987.4,3.347]
[1766208885952,3.35054576,2987.9,2987.4,3.35418476]
[1766208887248,3.35054576,2987.9,2987.4,0.00718476]
[1766208900469,1.75317499,2987.8,2987.1,3.347]
[1766208900863,3.35054576,2987.9,2987.1,3.347]
[1766208901469,3.35054576,2987.9,2987.1,3.34978941]
[1766208902061,3.35054576,2987.9,2987.1,5.1029644]
[1766208904379,0.00354576,2987.9,2987.1,5.1029644]
[1766208904578,3.347,2987.8,2987.1,5.1029644]
[1766208907479,3.347,2987.7,2987.1,5.1029644]
[1766208908072,0.00354576,2987.9,2987.5,1.75317499]
[1766208908475,3.35054576,2987.9,2987.3,1.75317499]
[1766208908979,3.35054576,2987.9,2987.1,5.1029644]
[1766208914277,3.35054576,2987.9,2987.3,1.75317499]
[1766208914881,0.00354576,2987.9,2987.5,1.75317499]
[1766208915178,3.347,2988.0,2987.5,1.75317499]
[1766208916178,3.35040367,2988.0,2987.5,1.75317499]
[1766208919482,3.347,2988.2,2987.7,1.75317499]
[1766208920081,0.00502125,2988.3,2987.7,1.75317499]
[1766208920284,3.35202125,2988.3,2987.7,1.75317499]
[1766208920582,3.35447736,2988.3,2987.7,1.75317499]
[1766208923285,0.00747736,2988.3,2987.9,1.75317499]
[1766208924082,0.00747736,2988.3,2987.8,1.75246543]
[1766208925380,3.347,2988.4,2987.8,1.75246543]
[1766208926289,3.35562867,2988.4,2987.8,1.75748667]
[1766208927586,0.00862867,2988.4,2988.0,1.75246543]
[1766208928480,0.00862867,2988.4,2987.8,0.00502124]
[1766208929786,0.00862867,2988.4,2987.8,2.124e-05]
[1766208930186,3.347,2988.3,2987.8,2.124e-05]
[1766208931386,3.347,2988.3,2987.5,4.39746543]
[1766208931387,3.347,2988.3,2987.5,5.992]
[1766208931785,3.347,2988.3,2987.5,3.347]
[1766208934285,3.347,2988.8,2988.2,1.75246543]
[1766208934491,3.347,2988.8,2988.0,1.75246543]
[1766208934492,3.347,2988.8,2988.4,1.75246543]
[1766208934893,3.347,2988.8,2988.2,1.75246543]
[1766208935283,3.35557579,2988.8,2988.2,1.75748668]
[1766208935484,3.35557579,2988.8,2987.2,1.75246543]
[1766208935784,5.10804122,2988.8,2987.7,1.75246543]
[1766208935985,5.10804122,2988.8,2987.8,3.347]
[1766208936586,3.35557579,2988.8,2987.8,3.347]
[1766208936988,3.35557579,2988.8,2987.9,1.75246543]
[1766208943393,3.35557579,2988.8,2987.8,3.347]
[1766208944797,0.00857579,2988.8,2987.8,3.347]
[1766208945002,0.00857579,2988.8,2988.0,1.7523852]
[1766208945200,0.00857579,2988.8,2988.1,3.347]
[1766208948308,3.347,2988.7,2987.9,3.347]
[1766208953109,5.985,2988.7,2987.9,3.347]
[1766208953903,5.985,2988.7,2987.3,1.7523852]
[1766208954100,5.985,2988.7,2987.4,3.347]
[1766208955903,1.7523852,2988.6,2987.4,3.347]
[1766208958610,1.7523852,2988.3,2987.4,3.347]
[1766208958910,3.347,2988.2,2987.2,2.521]
[1766208959112,3.347,2988.2,2987.1,3.34978941]
[1766208966730,3.347,2988.2,2987.2,1.7523852]
[1766208966930,3.347,2988.1,2987.2,1.7523852]
[1766208967333,3.347,2988.1,2987.1,3.34978941]
[1766208977036,1.7523852,2988.2,2987.1,3.34978941]
[1766208977230,4.345,2988.1,2987.1,3.34978941]
[1766208984239,1.7523852,2988.4,2987.1,3.34978941]
[1766208984441,3.775,2988.3,2987.1,3.34978941]
[1766208986142,1.7523852,2988.4,2987.1,3.34978941]
[1766208986339,8.144,2988.3,2987.1,3.34978941]
[1766208986540,10.257,2988.2,2987.1,3.34978941]
[1766208991245,1.7523852,2988.6,2987.1,3.34978941]
[1766208991543,6.787,2988.2,2987.1,3.34978941]
[1766208991737,3.347,2988.1,2987.1,3.34978941]
[1766208992132,0.17595579,2988.8,2987.3,1.75322499]
[1766208992338,17.569,2988.7,2987.3,1.75322499]
[1766208992646,17.569,2988.7,2987.4,3.347]
[1766208995550,0.17595579,2988.8,2987.4,3.347]
[1766208995852,10.488,2988.7,2987.4,3.347]
[1766208999351,0.17595579,2988.8,2987.4,3.347]
[1766208999543,3.878,2988.7,2987.4,3.347]
[1766209001539,1.75322499,2988.5,2987.4,3.347]
[1766209001742,3.347,2988.4,2987.1,0.00278941]
[1766209001944,3.347,2988.4,2987.2,3.347]
[1766209005356,5.10021295,2988.4,2987.2,5.10021295]
[1766209008559,5.10021295,2988.4,2987.4,1.75321295]
[1766209012559,3.347,2988.4,2987.4,1.75321295]
[1766209014254,3.347,2988.4,2987.3,1.75321295]
[1766209014455,1.75321295,2988.2,2987.2,3.347]
[1766209014757,3.347,2988.4,2987.3,1.75321295]
[1766209014758,3.347,2988.1,2987.3,1.75321295]
[1766209019970,3.347,2988.1,2987.5,1.75321295]
[1766209020362,3.347,2988.1,2987.7,1.75321295]
[1766209020667,1.75321295,2988.7,2987.7,1.75321295]
[1766209020872,4.3,2988.6,2987.7,1.75321295]
[1766209021157,4.3,2988.6,2987.5,3.347]
[1766209021366,4.3,2988.6,2987.5,5.10021295]
[1766209025570,0.17595579,2988.8,2987.5,5.10021295]
[1766209025860,0.17595579,2988.8,2988.5,1.75321295]
[1766209025861,3.35557579,2988.8,2988.5,1.75321295]
[1766209026062,3.35557579,2988.8,2988.3,1.75321295]
[1766209026262,3.35557579,2988.8,2988.2,1.75321295]
[1766209027061,0.00857579,2988.8,2988.2,1.75321295]
[1766209027261,3.35557579,2988.8,2988.2,1.75321295]
[1766209027658,3.35557579,2988.8,2988.0,3.347]
[1766209027861,5.10878874,2988.8,2988.0,3.347]
[1766209028366,5.10878874,2988.8,2987.7,5.10021295]
[1766209029566,3.35557579,2988.8,2987.9,1.75321295]
[1766209032577,3.347,2988.7,2987.9,1.75321295]
[1766209033176,0.00857579,2988.8,2988.3,1.75321295]
[1766209033373,3.35557579,2988.8,2988.3,1.75321295]
[1766209034878,3.35557579,2988.8,2988.0,3.347]
[1766209035079,3.35557579,2988.8,2988.0,5.10021295]
[1766209035269,3.35557579,2988.8,2988.0,3.347]
[1766209037780,3.35557579,2988.8,2988.0,5.10021295]
[1766209039879,0.00857579,2988.8,2988.2,1.75321295]
[1766209040080,3.347,2988.7,2988.2,1.75321295]
[1766209042881,3.347,2988.7,2988.0,5.10021295]
[1766209045381,3.347,2988.7,2988.0,3.347]
[1766209045578,3.347,2988.7,2987.8,5.10021295]
[1766209046181,3.347,2988.7,2987.8,3.347]
[1766209046386,3.347,2988.7,2987.8,5.10021295]
[1766209049297,3.347,2988.7,2987.8,3.347]
[1766209049499,3.347,2988.7,2987.9,1.75321295]
[1766209052688,0.00857579,2988.8,2988.1,1.75321295]
[1766209052887,3.347,2988.7,2988.1,1.75321295]
[1766209053900,3.347,2988.6,2988.1,1.75321295]
[1766209057904,3.347,2988.6,2987.8,5.10021295]
[1766209058103,3.347,2988.6,2987.8,3.347]
[1766209058403,5.10021295,2988.6,2987.8,3.347]
[1766209059204,5.10021295,2988.6,2987.5,1.75321295]
[1766209059499,5.10021295,2988.6,2987.5,5.10021295]
[1766209060104,5.09998452,2988.6,2987.5,5.09998452]
[1766209060797,5.09998452,2988.6,2987.5,3.347]
[1766209060994,3.347,2988.6,2987.5,5.09998452]
[1766209062201,1.75298452,2988.4,2987.5,3.347]
[1766209062502,3.347,2988.3,2987.5,3.347]
[1766209063491,1.75298452,2988.2,2987.5,3.347]
[1766209064195,3.347,2988.3,2987.5,3.347]
[1766209066509,3.347,2988.3,2987.2,3.347]
[1766209069910,1.75325303,2988.6,2987.2,3.347]
[1766209070213,5.446,2988.5,2987.2,3.347]
[1766209074916,5.446,2988.5,2987.1,0.00278941]
[1766209075118,1.75325303,2988.4,2987.1,0.00278941]
[1766209077219,1.75325303,2988.1,2987.1,0.00278941]
[1766209077404,3.347,2988.0,2987.1,0.00278941]
[1766209078213,1.75325303,2987.8,2986.3,1.75325303]
[1766209078418,1.75325303,2987.5,2986.0,1.75325303]
[1766209078717,0.00502125,2987.0,2986.0,1.75325303]
[1766209078913,3.347,2986.9,2986.0,1.75325303]
[1766209079314,3.347,2986.9,2986.0,1.75719248]
[1766209081618,3.347,2986.9,2986.0,0.00393945]
[1766209082420,3.347,2986.9,2986.0,1.75719248]
[1766209082825,3.347,2986.9,2986.0,0.00393945]
[1766209083526,0.00502125,2987.0,2986.0,0.00393945]
[1766209083826,7.57,2986.9,2986.0,0.00393945]
[1766209084922,4.438,2986.8,2986.0,0.00393945]
[1766209085116,6.8974,2986.8,2986.0,0.00393945]
[1766209085321,6.6011,2986.8,2986.0,0.00393945]
[1766209089230,0.00502125,2987.0,2986.0,0.00393945]
[1766209089422,3.95,2986.7,2986.0,0.00393945]
[1766209089622,3.348,2986.6,2986.0,0.00393945]
[1766209091730,0.00325086,2986.7,2986.0,0.00393945]
[1766209091927,7.53,2986.6,2986.0,0.00393945]
[1766209098148,7.762,2986.5,2986.1,1.75325303]
[1766209098538,7.762,2986.5,2986.0,0.00393945]
[1766209100650,0.00325086,2986.7,2986.0,0.00393945]
[1766209100843,3.348,2986.6,2986.4,1.75325303]
[1766209101149,0.00502125,2987.0,2986.1,1.75325303]
[1766209101851,3.361,2986.9,2986.1,1.75325303]
[1766209105552,0.00781022,2987.0,2986.1,1.75325303]
[1766209105754,3.442,2986.9,2986.1,1.75325303]
[1766209107341,3.442,2986.9,2986.0,0.00393945]
[1766209116655,0.00781022,2987.0,2986.0,0.00393945]
[1766209116859,3.364,2986.9,2986.0,0.00393945]
[1766209127267,1.75467789,2986.8,2986.0,0.00393945]
[1766209127460,1.75467789,2986.8,2986.0,3.945e-05]
[1766209128171,1.75496646,2986.8,2986.0,3.945e-05]
[1766209131566,3.364,2986.9,2986.0,3.945e-05]
[1766209133267,5.11896646,2986.9,2986.0,3.945e-05]
[1766209134072,3.364,2986.9,2986.0,3.945e-05]
[1766209134276,3.364,2986.9,2986.1,1.75496646]
[1766209135671,0.00781022,2987.0,2986.1,1.75496646]
[1766209135875,5.225,2986.8,2986.3,1.75496646]
[1766209136071,5.225,2986.8,2986.1,1.75496646]
[1766209138673,0.00781022,2987.0,2986.1,1.75496646]
[1766209138878,4.941,2986.8,2986.1,1.75496646]
[1766209140781,4.941,2986.8,2986.3,1.75496646]
[1766209141278,4.941,2986.8,2986.0,1.75500591]
[1766209141583,4.941,2986.8,2986.0,3.945e-05]
[1766209142483,8.899,2986.7,2986.1,1.75496646]
[1766209149790,0.00781022,2987.0,2986.1,1.75496646]
[1766209150083,7.233,2986.7,2986.1,1.75496646]
[1766209150287,3.349,2986.6,2986.1,1.75496646]
[1766209158786,3.349,2986.6,2986.0,3.945e-05]
[1766209158992,3.349,2986.6,2986.1,1.75496646]
[1766209159291,3.349,2986.6,2986.0,3.945e-05]
[1766209159586,3.349,2986.6,2986.0,1.75500591]
[1766209164893,0.00781022,2987.0,2986.0,1.75500591]
[1766209165296,3.352,2986.9,2986.0,1.75500591]
[1766209165993,0.00781022,2987.0,2986.4,1.75496646]
[1766209166194,3.349,2986.9,2986.6,1.75496646]
[1766209166399,3.349,2986.8,2986.4,1.75496646]
[1766209166698,3.349,2986.8,2986.2,1.75496646]
[1766209166898,3.349,2986.7,2986.1,1.75496646]
[1766209167300,3.349,2986.7,2986.0,3.945e-05]
[1766209167500,3.349,2986.7,2986.1,1.75496646]
[1766209170703,0.00781022,2987.0,2986.1,1.75496646]
[1766209170899,4.351,2986.8,2986.1,1.75496646]
[1766209177708,0.00781022,2987.0,2986.1,1.75496646]
[1766209178007,0.00781022,2987.0,2986.3,1.75496646]
[1766209178202,0.00781022,2987.0,2986.7,1.75496646]
[1766209178407,3.349,2986.9,2986.3,1.75496646]
[1766209178709,3.349,2986.8,2986.3,1.75496646]
[1766209179500,3.349,2986.8,2986.0,3.945e-05]
[1766209180808,0.00781022,2987.0,2986.0,3.945e-05]
[1766209181006,3.47,2986.9,2986.0,3.945e-05]
[1766209181602,3.414,2986.8,2986.1,1.75496646]
[1766209181804,3.349,2986.7,2986.1,1.75496646]
[1766209183211,0.00781022,2987.0,2986.1,1.75496646]
[1766209183411,3.769,2986.9,2986.1,1.75496646]
[1766209185317,0.00781022,2987.0,2986.1,1.75496646]
[1766209185613,3.476,2986.9,2986.1,1.75496646]
[1766209187514,3.476,2986.9,2986.0,3.945e-05]
[1766209188813,1.75445386,2986.8,2986.0,3.945e-05]
[1766209190718,3.476,2986.9,2986.0,3.945e-05]
[1766209197528,1.75482407,2986.5,2986.0,3.945e-05]
[1766209197728,3.349,2986.4,2986.0,3.945e-05]
[1766209202627,3.349,2986.4,2985.3,0.17847]
[1766209202932,1.75482407,2986.2,2985.2,3.349]
[1766209203131,1.75482407,2985.9,2984.9,3.349]
[1766209203325,1.75482407,2985.9,2984.7,0.0796146]
[1766209203326,3.349,2985.8,2984.7,0.0796146]
[1766209203526,3.349,2985.8,2984.7,0.08360091]
[1766209204334,3.349,2985.8,2984.7,0.00398631]
[1766209204540,1.75482407,2985.6,2984.2,3.349]
[1766209204832,0.00502125,2985.2,2983.8,5.10382407]
[1766209205038,6.999,2985.1,2983.8,5.10382407]
[1766209205740,6.999,2985.1,2983.8,5.10662377]
[1766209206128,0.00502125,2985.2,2983.8,3.3517997]
[1766209206333,3.844,2985.1,2984.1,1.75482407]
[1766209210542,0.00502125,2985.2,2984.1,1.75482407]
[1766209210741,5.944,2985.1,2984.1,1.75482407]
[1766209211841,0.00502125,2985.2,2984.1,1.75482407]
[1766209212142,6.982,2985.1,2984.1,1.75482407]
[1766209214345,0.00502125,2985.2,2984.1,1.75482407]
[1766209214643,7.489,2985.1,2984.1,1.75482407]
[1766209215744,3.35,2985.0,2984.1,1.75482407]
[1766209216149,0.00502125,2985.2,2984.4,1.75482407]
[1766209216539,3.482,2985.1,2984.4,1.75482407]
[1766209216737,3.482,2985.1,2984.1,5.10482407]
[1766209217644,0.00502125,2985.2,2984.1,5.10482407]
[1766209217842,3.35,2985.1,2984.5,1.75482407]
[1766209220746,0.00502125,2985.2,2984.5,1.75482407]
[1766209220948,3.35,2985.1,2984.3,1.75482407]
[1766209222551,3.35,2985.1,2984.1,3.35]
[1766209223539,0.00502125,2985.2,2984.1,3.35]
[1766209223740,3.35,2985.1,2984.1,3.35]
[1766209224945,0.00502125,2985.2,2984.3,1.75482407]
[1766209225151,3.35,2985.1,2984.6,1.75482407]
[1766209225343,3.35,2985.1,2984.3,1.75482407]
[1766209231354,3.35,2985.0,2984.3,1.75482407]
[1766209237160,0.00502125,2985.2,2984.3,1.75482407]
[1766209237359,3.35,2985.1,2984.3,1.75482407]
[1766209237659,3.35,2985.0,2984.3,1.75482407]
[1766209244663,0.00502125,2985.2,2984.3,1.75482407]
[1766209244864,3.35,2985.1,2984.3,1.75482407]
[1766209247367,3.35,2985.1,2984.7,1.7561081]
[1766209248961,0.00502125,2985.2,2984.7,1.7561081]
[1766209249169,3.35,2985.1,2984.7,1.7561081]
[1766209250562,0.00502125,2985.2,2984.7,1.7561081]
[1766209250765,3.35,2985.1,2984.7,1.7561081]
[1766209252970,0.00502125,2985.2,2984.7,1.7561081]
[1766209253172,3.35,2985.1,2984.7,1.7561081]
[1766209259275,0.00502125,2985.2,2984.7,1.7561081]
[1766209259475,3.35,2985.0,2984.7,1.7561081]
[1766209261091,0.00502125,2985.2,2984.7,1.7561081]
[1766209261278,3.35,2985.1,2984.9,1.7561081]
[1766209262184,0.00502125,2985.2,2984.9,1.7561081]
[1766209262382,3.35,2985.1,2984.9,1.7561081]
[1766209262886,3.35,2985.1,2984.9,1.4418081]
[1766209263078,3.35,2985.1,2984.9,1.1274081]
[1766209263574,3.35,2985.1,2984.8,1.75595976]
[1766209264382,3.35,2985.1,2984.5,1.75595976]
[1766209264582,3.35,2985.1,2984.4,3.35]
[1766209264979,3.35,2985.1,2984.2,1.75595976]
[1766209265285,3.35,2985.1,2984.1,1.75595976]
[1766209269491,3.35,2985.1,2983.8,3.3527997]
[1766209269682,3.35,2985.1,2984.1,1.75595976]
[1766209272695,6.108,2985.0,2984.3,1.75595976]
[1766209273291,6.108,2985.0,2983.8,3.3527997]
[1766209273494,6.108,2985.0,2984.1,1.75595976]
[1766209273694,1.76098101,2985.2,2984.1,1.75595976]
[1766209273992,4.177,2984.9,2984.1,1.75595976]
[1766209274193,3.351,2984.8,2984.1,1.75595976]
[1766209282500,5.10695976,2984.8,2983.8,3.3527997]
[1766209283298,3.351,2984.8,2983.8,3.3527997]
[1766209283897,5.10695976,2984.8,2983.8,3.3527997]
[1766209284305,3.351,2984.8,2983.8,3.3527997]
[1766209285205,3.351,2984.8,2983.8,5.10875946]
[1766209287205,3.351,2984.8,2983.8,1.75875946]
[1766209291514,1.75595976,2984.7,2983.8,0.0027997]
[1766209291695,3.351,2984.8,2983.9,1.75595976]
[1766209291901,0.00313037,2984.9,2984.1,1.75595976]
[1766209292302,4.327,2984.8,2984.1,1.75595976]
[1766209293904,0.00313037,2984.9,2984.3,1.75595976]
[1766209294107,8.965,2984.8,2984.3,1.75595976]
[1766209294708,0.00313037,2984.9,2984.3,1.75595976]
[1766209294906,8.484,2984.8,2984.3,1.75595976]
[1766209298913,3.351,2984.7,2984.2,1.75595976]
[1766209301210,0.00313037,2984.9,2984.6,1.75595976]
[1766209301414,0.00313037,2984.9,2984.4,1.75595976]
[1766209301620,3.351,2984.8,2984.4,1.75595976]
[1766209302416,3.351,2984.7,2984.4,1.75595976]
[1766209304221,0.00313037,2984.9,2984.4,1.75595976]
[1766209304516,3.351,2984.8,2984.4,1.75595976]
[1766209306922,1.20336159,2987.0,2984.5,6.65]
[1766209307123,3.351,2987.4,2986.5,1.75595976]
[1766209307332,3.351,2987.3,2986.5,1.75595976]
[1766209307618,5.235,2987.2,2986.3,1.75595976]
[1766209307824,3.351,2987.1,2986.3,1.75595976]
[1766209308016,1.75595976,2986.8,2986.3,1.155e-05]
[1766209308219,5.10695976,2986.7,2985.7,3.351]
[1766209308420,5.10695976,2986.7,2985.6,2.59395976]
[1766209308421,5.10695976,2986.7,2985.6,1.75595976]
[1766209308912,3.351,2986.7,2985.6,1.75595976]
[1766209309114,3.351,2986.7,2985.6,1.75930886]
[1766209309514,3.351,2986.7,2985.6,0.0033491]
[1766209311521,5.556,2986.6,2985.6,0.0033491]
[1766209312619,6.852,2986.5,2985.6,0.0033491]
[1766209313522,3.35,2986.4,2985.6,0.0033491]
[1766209315420,3.35,2986.3,2985.6,0.0033491]
[1766209316327,0.00502125,2987.0,2985.6,0.0033491]
[1766209316509,8.076,2986.9,2985.6,0.0033491]
[1766209319918,8.076,2986.9,2985.6,1.75826259]
[1766209320312,9.83091349,2986.9,2985.6,1.75826259]
[1766209320713,6.642,2986.8,2985.6,1.75826259]
[1766209322122,0.00502125,2987.0,2985.6,1.75826259]
[1766209322523,3.897,2986.9,2985.6,1.75826259]
[1766209323222,0.00502125,2987.0,2985.6,1.75826259]
[1766209323521,3.897,2986.9,2985.6,1.75826259]
[1766209324217,1.75491349,2986.8,2985.6,0.0033491]
[1766209325422,3.897,2986.9,2985.6,0.0033491]
[1766209326122,3.897,2986.9,2985.6,1.75826259]
[1766209330724,6.238,2986.8,2985.6,1.75826259]
[1766209331822,6.238,2986.8,2985.6,0.0033491]
[1766209333431,0.00502125,2987.0,2985.6,0.0033491]
[1766209333728,3.631,2986.7,2985.6,0.0033491]
[1766209333929,3.349,2986.6,2985.6,0.0033491]
[1766209334133,0.00502125,2987.0,2985.8,1.75501718]
[1766209334323,3.49,2986.9,2985.8,1.75501718]
[1766209335329,6.893,2986.8,2985.8,1.75501718]
[1766209335829,7.497,2986.7,2985.8,1.75501718]
[1766209336136,0.00502125,2987.0,2985.8,1.75501718]
[1766209336331,3.37,2986.9,2985.8,1.75501718]
[1766209337527,5.12501718,2986.9,2985.6,0.0033491]
[1766209338636,3.37,2986.9,2985.6,0.0033491]
[1766209338835,3.37,2986.9,2985.7,1.75501718]
[1766209339529,0.00502125,2987.0,2985.7,1.75501718]
[1766209339833,3.488,2986.9,2985.7,1.75501718]
[1766209341735,3.488,2986.9,2985.6,0.0033491]
[1766209342033,5.24301718,2986.9,2985.6,0.0033491]
[1766209345335,1.75501718,2986.7,2985.4,3.351]
[1766209345631,4.805,2986.6,2985.4,5.10601718]
[1766209346239,4.805,2986.6,2985.4,3.351]
[1766209346436,4.805,2986.6,2985.4,5.11021867]
[1766209355342,1.76003843,2987.0,2985.4,5.11021867]
[1766209355546,12.225,2986.9,2985.4,5.11021867]
[1766209358350,11.563,2986.8,2985.4,5.11021867]
[1766209358546,1.76003843,2987.0,2985.4,5.11021867]
[1766209358753,9.529,2986.9,2985.4,5.11021867]
[1766209368261,1.75501718,2986.7,2985.4,3.35520149]
[1766209368454,3.349,2986.6,2985.4,0.00420149]
[1766209368659,1.75501718,2986.3,2985.4,0.00420149]
[1766209368878,6.112,2986.2,2985.4,0.00420149]
[1766209377372,1.75556725,2986.1,2985.0,3.349]
[1766209378373,1.75556725,2986.1,2985.0,3.3523796]
[1766209384978,6.112,2986.2,2985.1,1.75556725]
[1766209386879,0.17250125,2987.0,2985.1,1.75556725]
[1766209387178,1.75556725,2986.3,2985.1,1.75556725]
[1766209387371,1.75556725,2986.1,2985.0,3.3523796]
[1766209387577,4.988,2986.0,2985.1,1.75556725]